bitfinex/quotes_SOLUSD_20240718
["timestamp","ask_amount","ask_price","bid_price","bid_amount"]
[1721333048490,1.58990749,157.26,157.21,0.34]
[1721333049470,1.58990749,157.26,157.21,1.61196472]
[1721333049669,26.4299564,157.27,157.22,0.3273]
[1721333049870,1.58987496,157.26,157.22,0.3273]
[1721333051075,24.84,157.27,157.23,0.17]
[1721333051279,1.58987688,157.3,157.23,0.17]
[1721333051280,26.42987688,157.3,157.24,0.3273]
[1721333051464,1.58954595,157.29,157.25,0.34]
[1721333051964,1.58954595,157.29,157.22,0.3273]
[1721333052175,1.58954595,157.29,157.23,0.17]
[1721333052375,1.58954595,157.29,157.23,0.34]
[1721333052881,24.84,157.27,157.18,8.0698216]
[1721333053059,24.84,157.24,157.18,7.7425216]
[1721333053260,1.59029522,157.23,157.16,0.3273]
[1721333053458,1.59029522,157.23,157.16,1.43281816]
[1721333054285,1.59029522,157.23,157.17,0.34]
[1721333058461,1.59027737,157.23,157.17,0.6673]
[1721333059064,1.59027737,157.23,157.19,0.3273]
[1721333059290,1.59009621,157.23,157.2,0.17]
[1721333059476,1.5900849,157.24,157.2,0.17]
[1721333059784,1.59007588,157.25,157.2,1.44206071]
[1721333059993,1.59007588,157.25,157.2,0.17]
[1721333060185,1.59007588,157.25,157.2,0.34]
[1721333060380,1.59007588,157.25,157.17,0.3273]
[1721333060583,1.59007588,157.25,157.18,0.34]
[1721333062479,24.84,157.22,157.18,0.17]
[1721333062679,1.59030787,157.21,157.17,0.6673]
[1721333062881,24.84,157.22,157.17,0.6673]
[1721333064496,1.59030428,157.25,157.19,0.3273]
[1721333064702,1.59009888,157.26,157.2,0.34]
[1721333065293,1.59009888,157.26,157.21,0.3273]
[1721333065496,24.84,157.27,157.23,0.3273]
[1721333065694,1.58974049,157.28,157.24,0.17]
[1721333065883,1.58974049,157.28,157.22,0.34]
[1721333067793,24.84,157.26,157.19,0.3273]
[1721333068080,24.84,157.26,157.13,0.3273]
[1721333068081,24.84,157.2,157.13,0.3273]
[1721333068275,1.59048084,157.19,157.11,0.3273]
[1721333068507,1.59048084,157.19,157.11,1.1064148]
[1721333068508,24.84,157.17,157.11,1.1064148]
[1721333069812,24.84,157.17,157.11,21.1064148]
[1721333070103,1.59078786,157.16,157.1,16.0097]
[1721333070281,1.59078786,157.16,157.08,0.3273]
[1721333070282,24.84,157.14,157.08,0.3273]
[1721333070483,24.84,157.14,157.09,1.10595574]
[1721333070679,24.84,157.11,157.09,1.10595574]
[1721333070894,1.59135527,157.1,157.04,0.3273]
[1721333071216,1.59135527,157.1,157.04,1.43395672]
[1721333071394,24.84,157.08,157.04,1.10665672]
[1721333071594,24.84,157.08,157.04,1.43395672]
[1721333072206,24.84,157.08,157.04,1.10665672]
[1721333073510,1.59135527,157.1,157.06,0.3273]
[1721333073692,1.59135527,157.1,157.07,0.17]
[1721333074197,24.84,157.11,157.07,1.4431585]
[1721333074399,1.59141045,157.1,157.07,0.17]
[1721333075195,24.84,157.11,157.07,0.17]
[1721333075515,1.59141894,157.1,157.07,0.17]
[1721333075716,24.84,157.11,157.07,0.17]
[1721333076211,1.59141771,157.1,157.07,0.34]
[1721333076412,1.59141771,157.1,157.07,0.17]
[1721333076603,24.84,157.11,157.07,0.17]
[1721333077616,24.84,157.11,157.07,1.61314175]
[1721333077819,24.84,157.11,157.07,0.34]
[1721333078717,24.84,157.14,157.08,0.3273]
[1721333078924,26.43119725,157.14,157.09,0.17]
[1721333079614,24.84,157.14,157.09,1.61298258]
[1721333079820,24.84,157.14,157.09,0.34]
[1721333080021,24.84,157.14,157.1,0.3273]
[1721333080203,24.84,157.14,157.11,0.17]
[1721333080604,24.84,157.14,157.1,0.3273]
[1721333081637,24.84,157.14,157.09,0.34]
[1721333081825,24.84,157.14,157.09,0.17]
[1721333081826,1.59111622,157.13,157.09,0.17]
[1721333082128,24.84,157.14,157.09,1.61300679]
[1721333082323,1.59112524,157.13,157.09,0.34]
[1721333082815,24.84,157.14,157.09,0.34]
[1721333083017,1.59118782,157.13,157.09,0.34]
[1721333083406,1.59118782,157.13,157.09,0.17]
[1721333084313,1.59118782,157.13,157.06,0.3273]
[1721333084496,1.59118782,157.13,157.06,1.60042986]
[1721333084913,1.59118782,157.13,157.06,1.27312986]
[1721333086126,1.59118782,157.13,157.07,0.17]
[1721333086332,1.59118782,157.13,157.07,0.6673]
[1721333086640,1.59123151,157.13,157.08,1.27298521]
[1721333086805,1.59123151,157.13,157.09,0.17]
[1721333087003,1.59123151,157.13,157.07,20.6673]
[1721333088340,24.84,157.14,157.09,0.3273]
[1721333088635,24.84,157.14,157.1,0.34]
[1721333088825,24.84,157.14,157.1,1.61286894]
[1721333089907,24.84,157.14,157.1,0.34]
[1721333091113,24.84,157.14,157.1,1.61287191]
[1721333092335,24.84,157.14,157.1,0.34]
[1721333092841,24.84,157.14,157.1,1.61287186]
[1721333094058,24.84,157.14,157.11,0.3273]
[1721333094229,24.84,157.14,157.12,0.17]
[1721333094935,1.59096551,157.19,157.13,0.3273]
[1721333095161,1.59072559,157.18,157.14,0.17]
[1721333095371,26.43079009,157.17,157.12,0.17]
[1721333095668,1.5908727,157.16,157.12,0.34]
[1721333097764,24.84,157.17,157.13,0.3273]
[1721333097939,1.5907819,157.16,157.14,0.17]
[1721333098142,1.5907819,157.16,157.13,0.3273]
[1721333100136,1.5907819,157.16,157.1,20.3273]
[1721333100436,1.5907819,157.16,157.11,0.17]
[1721333101351,24.84,157.14,157.11,0.17]
[1721333101542,1.59119526,157.13,157.1,0.34]
[1721333101744,24.84,157.14,157.1,0.34]
[1721333102267,26.43117437,157.17,157.11,0.3273]
[1721333102470,24.84,157.17,157.1,0.34]
[1721333102668,24.84,157.17,157.1,20.34]
[1721333103339,24.84,157.17,157.11,0.3273]
[1721333103540,24.84,157.17,157.12,0.17]
[1721333104464,1.59098384,157.19,157.12,1.44278707]
[1721333105039,1.59098384,157.19,157.13,0.3273]
[1721333105248,1.59098384,157.19,157.14,0.17]
[1721333106578,1.59098384,157.19,157.11,0.3273]
[1721333106745,1.59098384,157.19,157.12,0.34]
[1721333107270,1.59098384,157.19,157.12,0.17]
[1721333107641,1.59098384,157.19,157.12,1.61270704]
[1721333107845,1.59098384,157.19,157.13,0.3273]
[1721333108059,1.59098384,157.19,157.14,0.17]
[1721333108385,1.59098384,157.19,157.12,20.17]
[1721333108564,24.84,157.17,157.13,0.17]
[1721333108758,24.84,157.17,157.13,0.3273]
[1721333108960,24.84,157.17,157.14,0.17]
[1721333109186,24.84,157.17,157.14,0.34]
[1721333109484,24.84,157.17,157.14,0.17]
[1721333110391,24.84,157.17,157.14,1.44260021]
[1721333111585,24.84,157.2,157.14,1.44260021]
[1721333111758,1.59069105,157.19,157.14,1.44260021]
[1721333111954,1.59069089,157.19,157.15,0.3273]
[1721333112154,1.59069089,157.19,157.14,0.4973]
[1721333114269,24.84,157.2,157.16,0.3273]
[1721333114469,1.59052548,157.19,157.14,0.4973]
[1721333114663,1.59052548,157.19,157.14,0.6673]
[1721333116192,12.45,157.15,157.14,0.6673]
[1721333120987,12.45,157.15,157.14,0.34]
[1721333121191,12.45,157.15,157.13,0.17]
[1721333121405,12.45,157.14,157.13,0.17]
[1721333122490,12.45,157.14,157.09,16.96859542]
[1721333122688,12.45,157.11,157.09,16.96859542]
[1721333122886,12.45,157.11,157.1,20.0]
[1721333123479,12.45,157.11,157.09,16.96859542]
[1721333123693,12.45,157.1,157.09,1.10639542]
[1721333124102,12.45,157.1,157.05,15.8889]
[1721333124397,12.45,157.06,157.05,15.8889]
[1721333125094,12.45,157.08,157.07,0.3273]
[1721333125472,12.45,157.08,157.07,0.6673]
[1721333126274,12.45,157.08,157.07,0.34]
[1721333126475,12.45,157.08,157.07,0.17]
[1721333126683,12.45,157.08,157.06,20.0]
[1721333127096,12.45,157.07,157.06,20.0]
[1721333127397,12.45,157.07,157.06,20.17]
[1721333127903,1.59131446,157.11,157.06,20.17]
[1721333127904,12.45,157.11,157.08,0.3273]
[1721333128098,12.45,157.11,157.09,0.17]
[1721333128402,12.45,157.1,157.09,0.17]
[1721333128783,12.45,157.11,157.09,0.17]
[1721333129083,12.45,157.12,157.1,0.3273]
[1721333129394,1.59156149,157.15,157.12,0.3273]
[1721333129395,12.45,157.15,157.12,0.3273]
[1721333129707,12.45,157.14,157.12,0.3273]
[1721333132505,12.45,157.13,157.11,0.17]
[1721333132710,12.45,157.13,157.11,0.34]
[1721333133907,12.45,157.14,157.11,1.61279618]
[1721333134483,12.45,157.15,157.11,1.61279618]
[1721333134809,12.45,157.16,157.12,0.3273]
[1721333134978,12.45,157.16,157.13,0.17]
[1721333135184,12.45,157.16,157.13,1.44263342]
[1721333136104,1.59091063,157.19,157.14,0.4973]
[1721333136286,12.45,157.18,157.15,0.17]
[1721333136602,12.45,157.17,157.15,0.17]
[1721333137692,12.45,157.16,157.15,0.17]
[1721333138281,12.45,157.16,157.12,35.697]
[1721333138486,12.45,157.14,157.12,35.697]
[1721333138709,12.45,157.14,157.13,0.34]
[1721333138916,12.45,157.14,157.13,0.17]
[1721333140527,12.45,157.14,157.09,20.0]
[1721333140708,12.45,157.12,157.1,0.17]
[1721333140915,12.45,157.11,157.1,0.17]
[1721333141309,12.45,157.12,157.1,0.17]
[1721333142107,12.45,157.12,157.1,0.34]
[1721333142820,12.45,157.12,157.1,0.6673]
[1721333143034,12.45,157.12,157.1,0.34]
[1721333143204,12.45,157.11,157.09,20.0]
[1721333143709,12.45,157.11,157.08,15.697]
[1721333144721,12.45,157.11,157.09,0.34]
[1721333144903,1.59117175,157.18,157.1,0.3273]
[1721333144904,12.45,157.12,157.1,0.3273]
[1721333145104,12.45,157.13,157.11,0.17]
[1721333146129,14.04110815,157.12,157.09,20.0]
[1721333146317,12.45,157.12,157.08,0.3273]
[1721333146506,12.45,157.12,157.1,0.3273]
[1721333147427,12.45,157.12,157.11,0.17]
[1721333150022,12.45,157.12,157.08,0.3273]
[1721333150225,12.45,157.11,157.08,0.3273]
[1721333150622,12.45,157.1,157.07,0.34]
[1721333151440,12.45,157.11,157.07,1.6130738]
[1721333151643,12.45,157.11,157.08,0.3273]
[1721333152929,12.45,157.12,157.1,0.3273]
[1721333153542,12.45,157.12,157.11,0.17]
[1721333153753,12.45,157.15,157.13,0.3273]
[1721333155160,12.45,157.14,157.11,0.6673]
[1721333155452,12.45,157.12,157.11,0.34]
[1721333156147,12.45,157.12,157.11,0.17]
[1721333156322,12.45,157.12,157.08,20.0]
[1721333156523,12.45,157.12,157.09,1.94027828]
[1721333156737,12.45,157.11,157.09,0.17]
[1721333156941,12.45,157.11,157.08,0.17]
[1721333157155,12.45,157.12,157.08,0.17]
[1721333157739,12.45,157.1,157.08,0.17]
[1721333158340,12.45,157.09,157.08,0.17]
[1721333160452,12.45,157.09,157.06,20.0]
[1721333160661,12.45,157.07,157.06,20.0]
[1721333160958,12.45,157.07,157.04,0.3273]
[1721333161857,12.45,157.07,157.05,0.34]
[1721333162956,12.45,157.06,157.04,0.3273]
[1721333163166,12.45,157.05,157.02,6.97909365]
[1721333163460,12.45,157.04,157.02,0.3273]
[1721333163668,12.45,157.03,157.0,23.41040244]
[1721333164363,12.45,157.02,157.0,6.97840244]
[1721333165035,12.45,157.02,157.0,6.65110244]
[1721333165234,12.45,157.02,157.01,20.0]
[1721333165539,12.45,157.02,157.01,20.34]
[1721333166434,12.45,157.02,157.0,6.65110244]
[1721333166633,12.45,157.02,156.99,0.3273]
[1721333166634,12.45,157.01,156.99,0.3273]
[1721333167743,12.45,157.01,157.0,0.17]
[1721333168541,12.45,157.01,156.97,20.0]
[1721333168746,12.45,156.99,156.96,6.97630908]
[1721333169369,12.45,157.0,156.98,0.3273]
[1721333170180,1.59232496,157.03,156.97,20.0]
[1721333170460,1.59232496,157.03,156.97,20.3273]
[1721333170649,1.59232496,157.03,156.97,21.60120695]
[1721333170960,1.59232496,157.03,156.99,0.3273]
[1721333170961,12.45,157.02,156.99,0.3273]
[1721333171172,12.45,157.0,156.97,20.3273]
[1721333171344,12.45,156.99,156.97,20.0]
[1721333171538,12.45,156.99,156.98,0.3273]
[1721333171735,12.45,156.99,156.97,21.27392821]
[1721333172238,1.59237115,157.03,156.98,0.3273]
[1721333172454,12.45,157.0,156.98,0.3273]
[1721333172835,12.45,157.0,156.99,0.17]
[1721333174367,1.59234482,157.07,157.0,0.3273]
[1721333174564,12.45,157.03,157.01,0.17]
[1721333175165,12.45,157.02,157.01,0.17]
[1721333177442,12.45,157.03,157.01,0.17]
[1721333177653,12.45,157.04,157.02,0.3273]
[1721333177864,1.59234482,157.07,157.03,0.17]
[1721333178044,12.45,157.04,157.03,0.17]
[1721333178963,12.45,157.05,157.03,0.17]
[1721333179462,12.45,157.04,157.03,0.17]
[1721333182980,1.59234482,157.07,157.03,23.0073]
[1721333183192,1.59108021,157.15,157.09,0.3273]
[1721333183355,12.45,157.13,157.1,0.17]
[1721333183550,12.45,157.13,157.1,0.34]
[1721333184677,1.59115685,157.15,157.11,0.3273]
[1721333184873,12.45,157.13,157.12,0.17]
[1721333185379,12.45,157.14,157.12,0.17]
[1721333185576,12.45,157.14,157.12,0.34]
[1721333186174,1.5909471,157.18,157.12,0.17]
[1721333186494,26.51104087,157.17,157.12,0.17]
[1721333187169,26.51104087,157.17,157.09,0.3273]
[1721333187348,24.92,157.14,157.07,0.3273]
[1721333187553,1.59135787,157.13,157.07,0.3273]
[1721333188882,1.59135787,157.13,157.08,0.17]
[1721333189575,1.59135787,157.13,157.08,0.34]
[1721333190392,1.59135787,157.13,157.08,0.17]
[1721333191158,1.59135787,157.13,157.07,0.34]
[1721333199482,1.59135787,157.13,157.07,0.17]
[1721333199792,44.02,157.15,157.07,0.17]
[1721333199968,24.92,157.12,157.04,0.3273]
[1721333200170,24.92,157.09,157.03,16.4168]
[1721333200369,1.59188602,157.08,157.03,16.4168]
[1721333200688,1.59188276,157.07,157.03,16.4168]
[1721333200860,1.59188276,157.07,157.04,20.0]
[1721333201277,1.59188276,157.07,157.03,16.4168]
[1721333201479,1.59190714,157.08,157.03,16.4168]
[1721333201789,1.59191213,157.07,157.03,16.4168]
[1721333202572,1.59190268,157.08,157.03,16.4168]
[1721333202772,1.59189613,157.07,157.03,16.4168]
[1721333203794,1.59189826,157.08,157.03,16.4168]
[1721333203973,1.59188165,157.07,157.03,16.4168]
[1721333204402,1.59188165,157.07,157.04,0.17]
[1721333204697,26.51182902,157.12,157.05,0.3273]
[1721333204913,26.51182902,157.12,157.06,0.17]
[1721333205680,26.51182902,157.12,157.04,20.0]
[1721333205900,45.0,157.11,157.04,20.0]
[1721333206202,12.47,157.06,157.04,20.0]
[1721333206407,12.47,157.05,157.04,20.0]
[1721333206616,12.47,157.05,157.04,20.17]
[1721333211181,12.47,157.05,157.04,0.17]
[1721333211387,12.47,157.05,157.01,0.3273]
[1721333211587,12.47,157.04,157.02,0.34]
[1721333213616,12.47,157.05,157.02,0.34]
[1721333214324,12.47,157.05,157.03,0.3273]
[1721333214627,12.47,157.06,157.03,0.3273]
[1721333215291,12.47,157.05,157.03,0.3273]
[1721333215620,12.47,157.04,157.02,0.34]
[1721333216219,12.47,157.04,157.02,0.17]
[1721333216516,12.47,157.03,157.01,20.3273]
[1721333216714,12.47,157.03,157.01,0.3273]
[1721333219436,12.47,157.02,157.01,0.3273]
[1721333219732,12.47,157.02,157.01,0.4973]
[1721333219937,12.47,157.02,157.01,0.3273]
[1721333220514,12.47,157.02,156.98,1.43433257]
[1721333220736,12.47,156.99,156.98,1.10703257]
[1721333220908,12.47,156.99,156.96,0.3273]
[1721333221106,12.47,156.98,156.95,16.0598]
[1721333221744,12.47,156.96,156.94,1.95520299]
[1721333222036,12.47,156.97,156.94,1.95520299]
[1721333223007,12.47,156.97,156.95,0.34]
[1721333223208,12.47,156.98,156.96,0.3273]
[1721333223632,12.47,156.98,156.95,0.34]
[1721333224419,12.47,156.97,156.95,0.34]
[1721333227043,1.59236845,157.01,156.94,21.95520299]
[1721333227044,12.47,156.96,156.94,21.95520299]
[1721333227245,1.59236845,157.01,156.94,1.95520299]
[1721333227246,12.47,156.95,156.94,1.95520299]
[1721333227419,12.47,156.95,156.94,0.8480129]
[1721333228454,12.47,156.95,156.94,1.0180129]
[1721333229120,12.47,156.95,156.94,0.6907129]
[1721333231520,12.47,156.95,156.94,0.5207129]
[1721333238757,14.06299493,156.95,156.94,0.5207129]
[1721333239328,12.47,156.95,156.94,0.5207129]
[1721333242056,14.0631323,156.95,156.94,0.5207129]
[1721333243463,12.47,156.95,156.94,0.5207129]
[1721333243671,14.06312317,156.95,156.94,0.5207129]
[1721333251952,14.06312317,156.95,156.87,16.40118463]
[1721333251953,14.06312317,156.95,156.87,1.10758463]
[1721333252158,12.47,156.88,156.84,6.9247]
[1721333252358,12.47,156.86,156.84,6.9247]
[1721333252768,12.47,156.85,156.84,6.9247]
[1721333252966,12.47,156.86,156.84,6.9247]
[1721333253265,12.47,156.86,156.85,20.0]
[1721333253458,12.47,156.86,156.85,20.17]
[1721333254077,12.47,156.87,156.85,20.17]
[1721333254770,12.47,156.87,156.86,0.17]
[1721333259488,12.47,156.87,156.85,0.34]
[1721333259797,12.47,156.86,156.85,0.34]
[1721333260576,12.47,156.86,156.85,0.17]
[1721333264411,12.47,156.87,156.85,0.17]
[1721333264604,12.47,156.87,156.85,0.34]
[1721333264994,12.47,156.87,156.85,1.61494324]
[1721333266099,12.47,156.88,156.86,0.3273]
[1721333266305,12.47,156.88,156.87,0.17]
[1721333267389,12.47,156.88,156.85,0.17]
[1721333267588,1.59367834,156.92,156.85,0.34]
[1721333267589,12.47,156.86,156.85,0.34]
[1721333268190,12.47,156.87,156.85,0.34]
[1721333268393,12.47,156.88,156.86,0.3273]
[1721333268619,12.47,156.88,156.87,0.17]
[1721333270629,12.47,156.88,156.85,0.17]
[1721333270913,12.47,156.86,156.85,0.17]
[1721333272399,12.47,156.86,156.84,0.34]
[1721333272625,12.47,156.85,156.84,0.34]
[1721333273414,12.47,156.86,156.84,0.34]
[1721333273925,12.47,156.86,156.83,1.44983949]
[1721333274422,12.47,156.86,156.83,21.44983949]
[1721333277536,12.47,156.86,156.84,0.3273]
[1721333277705,12.47,156.86,156.85,0.17]
[1721333278326,12.47,156.86,156.84,0.17]
[1721333278735,12.47,156.85,156.84,0.17]
[1721333279107,12.47,156.85,156.81,20.3273]
[1721333279306,12.47,156.83,156.82,0.34]
[1721333280743,1.59397205,156.87,156.83,0.3273]
[1721333280921,12.47,156.85,156.82,0.34]
[1721333281115,12.47,156.84,156.82,0.34]
[1721333281435,12.47,156.84,156.82,0.17]
[1721333281607,12.47,156.83,156.82,0.17]
[1721333281809,12.47,156.84,156.82,0.17]
[1721333282227,14.06404515,156.83,156.81,1.11009149]
[1721333282434,71.436,156.88,156.79,1.1430036]
[1721333282435,14.06426876,156.82,156.79,1.1430036]
[1721333282605,12.47,156.8,156.79,1.1430036]
[1721333284725,12.47,156.8,156.79,1.3130036]
[1721333285337,12.47,156.8,156.79,0.9857036]
[1721333285641,12.47,156.8,156.79,1.1557036]
[1721333286442,12.47,156.8,156.79,0.9857036]
[1721333287029,1.59435559,156.87,156.79,0.9857036]
[1721333287231,12.47,156.81,156.79,1.3130036]
[1721333287441,12.47,156.8,156.79,0.9857036]
[1721333287951,12.47,156.8,156.79,1.3130036]
[1721333288109,12.47,156.8,156.79,0.9857036]
[1721333288918,12.47,156.8,156.79,1.3130036]
[1721333289117,12.47,156.82,156.79,1.4830036]
[1721333289808,46.59435559,156.87,156.81,0.3273]
[1721333289809,1.59435559,156.87,156.81,0.3273]
[1721333290014,12.47,156.84,156.81,0.3273]
[1721333290328,12.47,156.83,156.81,0.3273]
[1721333293160,1.59435559,156.87,156.83,0.3273]
[1721333293338,1.59380864,156.91,156.84,0.17]
[1721333293513,12.47,156.88,156.84,0.17]
[1721333295244,12.47,156.88,156.84,0.34]
[1721333295417,12.47,156.87,156.84,0.34]
[1721333298130,1.59380864,156.91,156.84,0.34]
[1721333298131,12.47,156.86,156.84,0.34]
[1721333298337,14.06405345,156.85,156.79,13.6130036]
[1721333298648,12.47,156.84,156.81,0.3273]
[1721333299346,14.06405682,156.83,156.8,20.0]
[1721333299538,12.47,156.83,156.79,22.41840141]
[1721333300518,14.06418582,156.82,156.79,21.1430036]
[1721333300742,12.47,156.82,156.79,21.1430036]
[1721333300945,1.59425013,156.81,156.79,20.8157036]
[1721333301145,12.47,156.82,156.79,0.8157036]
[1721333301336,12.47,156.82,156.8,0.3273]
[1721333301534,12.47,156.83,156.8,0.3273]
[1721333301749,12.47,156.82,156.79,0.8157036]
[1721333302124,12.47,156.82,156.8,0.17]
[1721333303853,14.06424891,156.81,156.79,0.8157036]
[1721333304051,14.06437288,156.8,156.79,0.8157036]
[1721333304345,12.47,156.8,156.79,0.8157036]
[1721333305858,1.59460949,156.85,156.79,0.8157036]
[1721333306021,12.47,156.8,156.79,0.8157036]
[1721333309148,1.59460949,156.85,156.8,15.7307]
[1721333309329,1.59421556,156.88,156.79,1.3130036]
[1721333309530,12.47,156.82,156.8,0.17]
[1721333310527,12.47,156.81,156.79,0.8157036]
[1721333311528,12.47,156.8,156.79,0.8157036]
[1721333315868,24.94,156.8,156.79,0.8157036]
[1721333317466,1.59489693,156.82,156.79,0.8157036]
[1721333317632,1.59452005,156.85,156.79,0.8157036]
[1721333317840,12.47,156.8,156.79,0.8157036]
[1721333320935,12.47,156.81,156.79,0.8157036]
[1721333321448,14.06444124,156.8,156.79,0.8157036]
[1721333321661,12.47,156.8,156.79,0.8157036]
[1721333322565,24.94,156.8,156.79,0.8157036]
[1721333324362,12.47,156.8,156.79,0.8157036]
[1721333325253,24.94,156.8,156.79,0.8157036]
[1721333328337,12.47,156.8,156.79,0.8157036]
[1721333329851,24.94,156.8,156.79,0.8157036]
[1721333330694,26.53499871,156.8,156.79,0.8157036]
[1721333330854,108.94499871,156.8,156.79,0.8157036]
[1721333333474,63.94499871,156.8,156.79,0.8157036]
[1721333340998,1.59499871,156.8,156.79,0.8157036]
[1721333341162,12.47,156.8,156.79,0.8157036]
[1721333342086,14.06485932,156.8,156.79,0.8157036]
[1721333343593,12.47,156.8,156.79,0.8157036]
[1721333345762,1.59483982,156.81,156.79,0.8157036]
[1721333345983,7.9705633,156.84,156.79,0.8157036]
[1721333346179,12.47,156.8,156.79,0.8157036]
[1721333353792,57.47,156.8,156.79,0.8157036]
[1721333355404,12.47,156.8,156.79,0.8157036]
[1721333359017,7.97055806,156.84,156.79,0.8157036]
[1721333359382,12.47,156.8,156.79,0.8157036]
[1721333363722,90.133,156.8,156.79,0.8157036]
[1721333363937,1.59517477,156.79,156.71,9.46208738]
[1721333364218,1.59517477,156.79,156.72,12.7973]
[1721333364424,1.59481028,156.82,156.74,0.3273]
[1721333364631,12.47,156.79,156.74,0.3273]
[1721333364816,12.47,156.79,156.74,14.07304169]
[1721333365429,12.47,156.79,156.74,14.07305751]
[1721333365594,1.59469707,156.78,156.75,0.17]
[1721333366131,12.47,156.79,156.75,0.17]
[1721333366926,1.59468987,156.78,156.75,0.17]
[1721333367717,12.47,156.79,156.75,0.17]
[1721333368258,1.59469559,156.78,156.75,0.17]
[1721333368526,12.47,156.79,156.75,0.17]
[1721333369724,1.59469787,156.78,156.75,0.17]
[1721333370631,14.06469787,156.78,156.75,0.17]
[1721333370841,12.47,156.78,156.75,0.17]
[1721333372630,1.59476814,156.77,156.75,0.17]
[1721333373007,12.47,156.76,156.74,20.0]
[1721333373408,12.47,156.75,156.73,15.6849]
[1721333374541,12.47,156.75,156.73,0.17]
[1721333374728,12.47,156.75,156.72,20.34]
[1721333375740,1.59515097,156.74,156.72,20.0]
[1721333376553,1.59515097,156.74,156.7,22.26675964]
[1721333376746,14.06515097,156.74,156.71,20.0]
[1721333377048,1.59514733,156.73,156.71,20.0]
[1721333377349,1.59514733,156.73,156.7,9.96675964]
[1721333377538,1.59514733,156.73,156.7,9.9622072]
[1721333378041,1.59514733,156.73,156.7,9.96052859]
[1721333378227,1.59525527,156.79,156.72,0.3273]
[1721333378423,12.47,156.76,156.72,0.3273]
[1721333378728,1.59502247,156.75,156.72,0.3273]
[1721333378929,14.06502247,156.75,156.7,22.43052859]
[1721333379226,14.06502247,156.75,156.71,0.17]
[1721333379647,12.47,156.74,156.71,0.17]
[1721333380027,12.47,156.75,156.71,0.17]
[1721333380223,1.59511868,156.74,156.71,0.17]
[1721333380450,12.47,156.75,156.72,0.3273]
[1721333380750,12.47,156.76,156.72,0.3273]
[1721333380922,14.0650218,156.75,156.71,0.17]
[1721333381123,12.47,156.75,156.71,0.34]
[1721333381358,1.5950235,156.79,156.72,0.3273]
[1721333381548,12.47,156.76,156.73,0.17]
[1721333381727,1.5949188,156.75,156.73,0.17]
[1721333381923,1.5949188,156.75,156.72,0.3273]
[1721333382443,1.59500142,156.75,156.72,0.3273]
[1721333383444,1.59500009,156.79,156.73,0.17]
[1721333384354,12.47,156.77,156.74,0.3273]
[1721333384654,12.47,156.79,156.75,0.17]
[1721333385448,12.47,156.78,156.75,0.17]
[1721333385830,12.47,156.78,156.75,1.44574755]
[1721333387031,12.47,156.78,156.75,0.17]
[1721333393455,12.47,156.77,156.75,0.17]
[1721333393959,12.47,156.77,156.74,0.6673]
[1721333394160,12.47,156.77,156.74,0.17]
[1721333394347,14.06486369,156.76,156.74,0.17]